fUST/lending_fUST_20250630
["ID","MTS","AMOUNT","RATE_DAILY","PERIOD"]
[368579168,1751214640351,-460.0,0.00018666,2]
[368579170,1751214640363,-460.0,0.00018666,2]
[368579172,1751214640373,-460.0,0.00018666,2]
[368579174,1751214640382,-838.12,0.00018666,2]
[368579176,1751214640392,-3008.72,0.00018666,2]
[368579177,1751214640401,-460.0,0.00018666,2]
[368579179,1751214640411,-460.0,0.00018666,2]
[368579181,1751214640420,-709.41,0.00018666,2]
[368579183,1751214640429,-3031.75,0.00018666,2]
[368579185,1751214640438,-460.0,0.00018666,2]
[368579187,1751214640447,-664.82,0.00018666,2]
[368579189,1751214640457,-460.0,0.00018666,2]
[368579191,1751214640466,-460.0,0.00018666,2]
[368579193,1751214640475,-660.35,0.00018666,2]
[368579195,1751214640484,-493.51,0.00018666,2]
[368579196,1751214640494,-3488.56,0.00018666,2]
[368579198,1751214640503,-1073.01,0.00018666,2]
[368579200,1751214640513,-460.0,0.00018666,2]
[368579202,1751214640522,-460.0,0.00018666,2]
[368579204,1751214640532,-575.85,0.00018666,2]
[368579206,1751214640542,-3160.96,0.00018666,2]
[368579208,1751214640551,-3422.77,0.00018666,2]
[368579210,1751214640561,-516.83,0.00018666,2]
[368579212,1751214640570,-460.0,0.00018666,2]
[368579214,1751214640579,-460.0,0.00018666,2]
[368579216,1751214640589,-1879.78,0.00018666,2]
[368579218,1751214640598,-460.0,0.00018666,2]
[368579219,1751214640608,-460.0,0.00018666,2]
[368579221,1751214640617,-1343.88,0.00018666,2]
[368579223,1751214640627,-530.65,0.00018666,2]
[368579225,1751214640637,-600.34,0.00018666,2]
[368579227,1751214640646,-594.39,0.00018666,2]
[368579229,1751214640656,-1811.05,0.00018666,2]
[368579231,1751214640665,-484.72,0.00018666,2]
[368579233,1751214640675,-460.0,0.00018667,2]
[368579235,1751214640684,-460.0,0.00018667,2]
[368579237,1751214640693,-464.8562431,0.00018667,2]
[368579238,1751214640702,-460.0,0.00018667,2]
[368579240,1751214640711,-573.43,0.00018667,2]
[368579242,1751214640720,-317.37548453,0.00018667,2]
[368579244,1751214640730,-460.0,0.00018667,2]
[368579246,1751214640739,-816.59,0.00018667,2]
[368579248,1751214640748,-460.0,0.00018667,2]
[368579250,1751214640757,-633.25,0.00018667,2]
[368579252,1751214640766,-460.0,0.00018667,2]
[368579254,1751214640776,-932.7,0.00018667,2]
[368579256,1751214640785,-460.0,0.00018667,2]
[368579258,1751214640795,-4508.6,0.00018667,2]
[368579259,1751214640804,-806.75,0.00018667,2]
[368579261,1751214640813,-991.41,0.00018667,2]
[368579263,1751214640822,-460.0,0.00018669,2]
[368579265,1751214640832,-460.0,0.00018669,2]
[368579267,1751214640842,-1263.59,0.00018669,2]
[368579269,1751214640851,-1126.2,0.00018669,2]
[368579271,1751214640861,-1511.29,0.00018669,2]
[368579273,1751214640870,-460.0,0.00018669,2]
[368579275,1751214640879,-460.0,0.00018669,2]
[368579276,1751214640888,-460.0,0.00018669,2]
[368579278,1751214640897,-1150.3,0.00018669,2]
[368579280,1751214640906,-879.31,0.00018669,2]
[368579282,1751214640915,-531.23,0.00018669,2]
[368579284,1751214640925,-1095.64,0.00018669,2]
[368579285,1751214640934,-1792.45,0.00018669,2]
[368579287,1751214640944,-1237.25,0.00018669,2]
[368579289,1751214640953,-460.0,0.0001867,2]
[368579291,1751214640963,-460.0,0.0001867,2]
[368579293,1751214640973,-460.0,0.0001867,2]
[368579295,1751214640983,-460.0,0.0001867,2]
[368579297,1751214640993,-460.0,0.0001867,2]
[368579299,1751214641004,-460.0,0.0001867,2]
[368579301,1751214641014,-494.59,0.0001867,2]
[368579303,1751214641023,-529.04,0.0001867,2]
[368579304,1751214641033,-460.0,0.0001867,2]
[368579306,1751214641043,-621.83,0.0001867,2]
[368579308,1751214641052,-492.8,0.0001867,2]
[368579310,1751214641062,-460.0,0.0001867,2]
[368579312,1751214641071,-460.0,0.0001867,2]
[368579314,1751214641081,-460.0,0.0001867,2]
[368579315,1751214641091,-4835.72,0.0001867,2]
[368579316,1751214641100,-1533.27,0.0001867,2]
[368579317,1751214641109,-488.44,0.0001867,2]
[368579318,1751214641118,-460.0,0.0001867,2]
[368579319,1751214641127,-460.0,0.0001867,2]
[368579320,1751214641136,-460.0,0.0001867,2]
[368579321,1751214641146,-460.0,0.00018683,2]
[368579322,1751214641155,-460.0,0.00018683,2]
[368579323,1751214641164,-460.0,0.00018684,2]
[368579324,1751214641173,-600.39,0.00018684,2]
[368579325,1751214641183,-460.0,0.00018684,2]
[368579326,1751214641192,-460.0,0.00018684,2]
[368579327,1751214641201,-460.0,0.00018684,2]
[368579328,1751214641210,-460.0,0.00018684,2]
[368579329,1751214641221,-230.25826149,0.00018684,2]
[368579330,1751214641230,-1812.34,0.00018684,2]
[368579331,1751214641239,-460.0,0.00018684,2]
[368579332,1751214641248,-460.0,0.00018689,2]
[368579333,1751214641257,-460.0,0.00018691,2]
[368579334,1751214641267,-151.0,0.00018841,2]
[368579335,1751214641307,-500.0,0.00018841,2]
[368579336,1751214641318,-151.0,0.00018841,2]
[368579337,1751214641330,-151.0,0.00018841,2]
[368579338,1751214641340,-151.0,0.00018841,2]
[368579339,1751214641349,-151.71752132,0.00018841,2]
[368579340,1751214641358,-152.925161,0.00018841,2]
[368579341,1751214641371,-221.53449526,0.00018847,3]
[368579342,1751214641380,-507.38068152,0.00018863,2]
[368579343,1751214641389,-500.0,0.00018863,2]
[368579344,1751214641399,-164.92671865,0.00018868,2]
[368579345,1751214641407,-500.0,0.00018868,2]
[368579346,1751214641417,-227.75927338,0.00018868,2]
[368579347,1751214641426,-151.0,0.00018868,2]
[368579348,1751214641435,-500.0,0.00018896,2]
[368579349,1751214641445,-151.0,0.00018896,2]
[368579350,1751214641454,-5609.91790282,0.000189,2]
[368579351,1751214641463,-1233.47414418,0.000189,2]
[368579352,1751214641473,-500.0,0.00018923,2]
[368579353,1751214641482,-200.04574576,0.00018923,2]
[368579354,1751214641491,-655.20954591,0.00018935,2]
[368579356,1751214641500,-583.38,0.00018938,2]
[368579357,1751214641509,-569.2,0.00018938,2]
[368579359,1751214641518,-2220.41,0.00018938,2]
[368579361,1751214641527,-460.0,0.00018938,2]
[368579363,1751214641536,-460.0,0.00018938,2]
[368579365,1751214641546,-460.0,0.00018939,2]
[368579367,1751214641555,-460.0,0.00018939,2]
[368579369,1751214641564,-460.0,0.00018939,2]
[368579371,1751214641574,-460.0,0.00018939,2]
[368579373,1751214641586,-460.0,0.00018939,2]
[368579375,1751214641595,-460.0,0.00018939,2]
[368579377,1751214641604,-460.0,0.00018939,2]
[368579379,1751214641614,-460.0,0.0001894,2]
[368579381,1751214641624,-460.0,0.0001894,2]
[368579383,1751214641634,-460.0,0.0001894,2]
[368579385,1751214641643,-222.77221466,0.0001894,2]
[368579387,1751214641652,-460.0,0.0001894,2]
[368579389,1751214641661,-838.12,0.0001894,2]
[368579391,1751214641671,-3008.72,0.0001894,2]
[368579393,1751214641680,-490.21,0.0001894,2]
[368579395,1751214641689,-460.0,0.0001894,2]
[368579397,1751214641698,-709.41,0.0001894,2]
[368579398,1751214641708,-3031.75,0.0001894,2]
[368579400,1751214641717,-460.0,0.0001894,2]
[368579402,1751214641726,-664.82,0.0001894,2]
[368579404,1751214641735,-460.0,0.0001894,2]
[368579406,1751214641744,-460.0,0.0001894,2]
[368579408,1751214641753,-660.35,0.0001894,2]
[368579410,1751214641762,-493.51,0.0001894,2]
[368579412,1751214641772,-3488.56,0.0001894,2]
[368579414,1751214641781,-1073.01,0.0001894,2]
[368579416,1751214641791,-460.0,0.0001894,2]
[368579418,1751214641800,-376.1974239,0.0001894,2]
[368579420,1751214641809,-575.85,0.0001894,2]
[368579422,1751214641818,-3160.96,0.0001894,2]
[368579424,1751214641827,-3422.77,0.0001894,2]
[368579426,1751214641837,-516.83,0.0001894,2]
[368579428,1751214641846,-542.59,0.0001894,2]
[368579429,1751214641856,-460.0,0.0001894,2]
[368579431,1751214641865,-1879.78,0.0001894,2]
[368579433,1751214641874,-460.0,0.0001894,2]
[368579435,1751214641884,-460.0,0.0001894,2]
[368579437,1751214641893,-1343.88,0.0001894,2]
[368579439,1751214641902,-530.65,0.0001894,2]
[368579441,1751214641912,-600.34,0.0001894,2]
[368579443,1751214641921,-594.39,0.0001894,2]
[368579445,1751214641931,-1811.05,0.0001894,2]
[368579447,1751214641940,-484.72,0.0001894,2]
[368579449,1751214641949,-460.0,0.00018941,2]
[368579451,1751214641959,-460.0,0.00018941,2]
[368579453,1751214641967,-460.0,0.00018941,2]
[368579455,1751214641977,-573.43,0.00018941,2]
[368579457,1751214641987,-460.0,0.00018941,2]
[368579459,1751214641997,-816.59,0.00018941,2]
[368579461,1751214642007,-460.0,0.00018941,2]
[368579463,1751214642016,-633.25,0.00018941,2]
[368579465,1751214642025,-460.0,0.00018941,2]
[368579467,1751214642035,-932.7,0.00018941,2]
[368579469,1751214642045,-460.0,0.00018941,2]
[368579471,1751214642054,-4508.6,0.00018941,2]
[368579473,1751214642064,-806.75,0.00018941,2]
[368579475,1751214642073,-991.41,0.00018941,2]
[368579477,1751214642083,-460.0,0.00018943,2]
[368579479,1751214642093,-460.0,0.00018943,2]
[368579481,1751214642102,-1263.59,0.00018943,2]
[368579483,1751214642111,-1126.2,0.00018943,2]
[368579485,1751214642120,-1511.29,0.00018943,2]
[368579486,1751214642129,-460.0,0.00018943,2]
[368579488,1751214642139,-460.0,0.00018943,2]
[368579490,1751214642148,-460.0,0.00018943,2]
[368579492,1751214642158,-1150.3,0.00018943,2]
[368579494,1751214642167,-879.31,0.00018943,2]
[368579496,1751214642176,-531.23,0.00018943,2]
[368579498,1751214642186,-1095.64,0.00018943,2]
[368579500,1751214642196,-1792.45,0.00018943,2]
[368579502,1751214642205,-1237.25,0.00018943,2]
[368579504,1751214642214,-460.0,0.00018944,2]
[368579506,1751214642224,-460.0,0.00018944,2]
[368579508,1751214642233,-460.0,0.00018944,2]
[368579510,1751214642242,-460.0,0.00018944,2]
[368579512,1751214642252,-460.0,0.00018944,2]
[368579514,1751214642261,-494.59,0.00018944,2]
[368579516,1751214642270,-529.04,0.00018944,2]
[368579518,1751214642280,-460.0,0.00018944,2]
[368579519,1751214642292,-621.83,0.00018944,2]
[368579521,1751214642301,-492.8,0.00018944,2]
[368579523,1751214642311,-460.0,0.00018944,2]
[368579525,1751214642320,-460.0,0.00018944,2]
[368579527,1751214642330,-460.0,0.00018944,2]
[368579529,1751214642339,-4835.72,0.00018944,2]
[368579531,1751214642349,-1533.27,0.00018944,2]
[368579533,1751214642358,-488.44,0.00018944,2]
[368579535,1751214642369,-460.0,0.00018944,2]
[368579537,1751214642379,-311.49189335,0.00018944,2]
[368579539,1751214642389,-500.0,0.00018951,2]
[368579541,1751214642398,-460.0,0.00018957,2]
[368579543,1751214642407,-460.0,0.00018958,2]
[368579545,1751214642416,-600.39,0.00018958,2]
[368579547,1751214642425,-460.0,0.00018958,2]
[368579549,1751214642435,-460.0,0.00018958,2]
[368579551,1751214642444,-460.0,0.00018958,2]
[368579553,1751214642454,-1812.34,0.00018958,2]
[368579555,1751214642463,-460.0,0.00018958,2]
[368579557,1751214642473,-642.77640978,0.00018963,2]
[368579559,1751214642482,-460.0,0.00018965,2]
[368579561,1751214642491,-500.0,0.00018978,2]
[368579562,1751214642501,-5000.0,0.00018982,2]
[368579564,1751214642510,-500.0,0.00018983,2]
[368579566,1751214642519,-500.0,0.00018983,2]
[368579568,1751214642529,-369.03910652,0.00018983,2]
[368579570,1751214642538,-500.0,0.00018983,2]
[368579573,1751214642547,-500.0,0.00019,2]
[368579575,1751214642557,-500.0,0.00019005,2]
[368579577,1751214642566,-500.0,0.00019023,2]
[368579579,1751214642575,-500.0,0.00019023,2]
[368579581,1751214642585,-500.0,0.00019033,2]
[368579583,1751214642594,-500.0,0.0001906,2]
[368579585,1751214642604,-500.0,0.00019088,2]
[368579587,1751214642615,-500.0,0.000191,2]
[368579589,1751214642625,-5609.91790259,0.00019107,2]
[368579591,1751214642634,-152.0,0.00019115,2]
[368579593,1751214642643,-10914.20244927,0.00019171,2]
[368579595,1751214642653,-748.280903,0.00019178,2]
[368579597,1751214642663,-3564.39970711,0.00019183,2]
[368579599,1751214642672,-583.38,0.00019212,2]
[368579601,1751214642682,-569.2,0.00019212,2]
[368579603,1751214642692,-2220.41,0.00019212,2]
[368579605,1751214642701,-460.0,0.00019212,2]
[368579607,1751214642710,-460.0,0.00019212,2]
[368579609,1751214642720,-460.0,0.00019213,2]
[368579611,1751214642729,-460.0,0.00019213,2]
[368579613,1751214642739,-460.0,0.00019213,2]
[368579615,1751214642748,-460.0,0.00019213,2]
[368579617,1751214642757,-460.0,0.00019213,2]
[368579619,1751214642766,-460.0,0.00019213,2]
[368579621,1751214642775,-460.0,0.00019213,2]
[368579623,1751214642785,-460.0,0.00019214,2]
[368579625,1751214642794,-460.0,0.00019214,2]
[368579627,1751214642803,-460.0,0.00019214,2]
[368579629,1751214642812,-838.12,0.00019214,2]
[368579631,1751214642822,-3008.72,0.00019214,2]
[368579633,1751214642831,-460.0,0.00019214,2]
[368579635,1751214642840,-709.41,0.00019214,2]
[368579637,1751214642850,-3031.75,0.00019214,2]
[368579639,1751214642860,-460.0,0.00019214,2]
[368579640,1751214642869,-664.82,0.00019214,2]
[368579642,1751214642877,-460.0,0.00019214,2]
[368579644,1751214642887,-460.0,0.00019214,2]
[368579646,1751214642896,-660.35,0.00019214,2]
[368579648,1751214642905,-493.51,0.00019214,2]
[368579650,1751214642914,-3488.56,0.00019214,2]
[368579652,1751214642923,-460.0,0.00019214,2]
[368579654,1751214642932,-1073.01,0.00019214,2]
[368579656,1751214642942,-575.85,0.00019214,2]
[368579658,1751214642951,-3160.96,0.00019214,2]
[368579660,1751214642960,-3422.77,0.00019214,2]
[368579662,1751214642970,-516.83,0.00019214,2]
[368579664,1751214642980,-460.0,0.00019214,2]
[368579666,1751214642989,-1879.78,0.00019214,2]
[368579668,1751214642998,-460.0,0.00019214,2]
[368579670,1751214643007,-460.0,0.00019214,2]
[368579672,1751214643016,-1343.88,0.00019214,2]
[368579674,1751214643025,-530.65,0.00019214,2]
[368579676,1751214643034,-600.34,0.00019214,2]
[368579678,1751214643043,-594.39,0.00019214,2]
[368579680,1751214643053,-1811.05,0.00019214,2]
[368579682,1751214643062,-484.72,0.00019214,2]
[368579684,1751214643071,-460.0,0.00019215,2]
[368579686,1751214643081,-460.0,0.00019215,2]
[368579688,1751214643090,-460.0,0.00019215,2]
[368579690,1751214643100,-573.43,0.00019215,2]
[368579692,1751214643110,-460.0,0.00019215,2]
[368579694,1751214643119,-816.59,0.00019215,2]
[368579696,1751214643129,-460.0,0.00019215,2]
[368579698,1751214643139,-633.25,0.00019215,2]
[368579700,1751214643148,-460.0,0.00019215,2]
[368579702,1751214643157,-932.7,0.00019215,2]
[368579704,1751214643166,-460.0,0.00019215,2]
[368579706,1751214643178,-806.75,0.00019215,2]
[368579708,1751214643187,-4508.6,0.00019215,2]
[368579710,1751214643197,-991.41,0.00019215,2]
[368579712,1751214643206,-460.0,0.00019217,2]
[368579714,1751214643215,-460.0,0.00019217,2]
[368579716,1751214643224,-1263.59,0.00019217,2]
[368579718,1751214643234,-1126.2,0.00019217,2]
[368579720,1751214643243,-1511.29,0.00019217,2]
[368579722,1751214643252,-460.0,0.00019217,2]
[368579724,1751214643262,-460.0,0.00019217,2]
[368579725,1751214643271,-460.0,0.00019217,2]
[368579727,1751214643281,-1150.3,0.00019217,2]
[368579729,1751214643293,-879.31,0.00019217,2]
[368579732,1751214643303,-531.23,0.00019217,2]
[368579734,1751214643312,-1095.64,0.00019217,2]
[368579737,1751214643322,-1792.45,0.00019217,2]
[368579740,1751214643333,-1237.25,0.00019217,2]
[368579743,1751214643343,-460.0,0.00019218,2]
[368579744,1751214643353,-460.0,0.00019218,2]
[368579746,1751214643362,-460.0,0.00019218,2]
[368579748,1751214643372,-460.0,0.00019218,2]
[368579750,1751214643382,-460.0,0.00019218,2]
[368579752,1751214643391,-494.59,0.00019218,2]
[368579754,1751214643401,-529.04,0.00019218,2]
[368579756,1751214643410,-460.0,0.00019218,2]
[368579758,1751214643420,-621.83,0.00019218,2]
[368579760,1751214643431,-492.8,0.00019218,2]
[368579763,1751214643441,-460.0,0.00019218,2]
[368579765,1751214643452,-460.0,0.00019218,2]
[368579767,1751214643462,-460.0,0.00019218,2]
[368579769,1751214643471,-4835.72,0.00019218,2]
[368579770,1751214643480,-1533.27,0.00019218,2]
[368579773,1751214643490,-488.44,0.00019218,2]
[368579775,1751214643500,-460.0,0.00019218,2]
[368579776,1751214643509,-460.0,0.00019231,2]
[368579778,1751214643519,-460.0,0.00019232,2]
[368579780,1751214643528,-600.39,0.00019232,2]
[368579782,1751214643538,-460.0,0.00019232,2]
[368579784,1751214643547,-460.0,0.00019232,2]
[368579786,1751214643557,-460.0,0.00019232,2]
[368579788,1751214643567,-1812.34,0.00019232,2]
[368579790,1751214643577,-500.0,0.00019236,2]
[368579792,1751214643586,-460.0,0.00019239,2]
[368579794,1751214643596,-517.33332786,0.00019262,2]
[368579796,1751214643605,-847.31290578,0.00019285,2]
[368579798,1751214643615,-214.97967293,0.00019285,2]
[368579800,1751214643625,-160.0,0.00019285,2]
[368579802,1751214643634,-160.0,0.00019285,2]
[368579804,1751214643643,-160.0,0.00019285,2]
[368579806,1751214643653,-12567.05932091,0.00019285,2]
[368579808,1751214643663,-837.1293463,0.00019285,2]
[368579810,1751214643673,-160.0,0.00019285,2]
[368579812,1751214643682,-160.0,0.00019285,2]
[368579814,1751214643692,-160.0,0.00019285,2]
[368579816,1751214643701,-213.82031328,0.00019285,2]
[368579818,1751214643711,-160.0,0.00019285,2]
[368579820,1751214643720,-160.0,0.00019285,2]
[368579822,1751214643730,-230.30207649,0.00019285,2]
[368579825,1751214643739,-488.91558605,0.00019289,2]
[368579827,1751214643748,-182.82418773,0.00019293,2]
[368579829,1751214643758,-160.0,0.00019303,3]
[368579831,1751214643767,-5609.91790259,0.00019314,2]
[368579833,1751214643776,-100000.0,0.00019329,2]
[368579835,1751214643786,-1000.0,0.00019411,2]
[368579837,1751214643795,-583.38,0.00019486,2]
[368579839,1751214643805,-569.2,0.00019486,2]
[368579841,1751214643815,-2220.41,0.00019486,2]
[368579843,1751214643824,-460.0,0.00019486,2]
[368579845,1751214643834,-460.0,0.00019486,2]
[368579847,1751214643844,-460.0,0.00019487,2]
[368579849,1751214643853,-460.0,0.00019487,2]
[368579851,1751214643863,-460.0,0.00019487,2]
[368579854,1751214643874,-460.0,0.00019487,2]
[368579857,1751214643884,-460.0,0.00019487,2]
[368579858,1751214643892,-460.0,0.00019487,2]
[368579859,1751214643902,-460.0,0.00019487,2]
[368579860,1751214643911,-460.0,0.00019488,2]
[368579861,1751214643920,-460.0,0.00019488,2]
[368579862,1751214643929,-838.12,0.00019488,2]
[368579863,1751214643938,-3008.72,0.00019488,2]
[368579864,1751214643947,-460.0,0.00019488,2]
[368579865,1751214643957,-709.41,0.00019488,2]
[368579866,1751214643966,-3031.75,0.00019488,2]
[368579867,1751214643976,-460.0,0.00019488,2]
[368579868,1751214643985,-664.82,0.00019488,2]
[368579869,1751214643994,-460.0,0.00019488,2]
[368579870,1751214644004,-460.0,0.00019488,2]
[368579871,1751214644013,-660.35,0.00019488,2]
[368579872,1751214644022,-493.51,0.00019488,2]
[368579873,1751214644033,-3488.56,0.00019488,2]
[368579874,1751214644043,-460.0,0.00019488,2]
[368579875,1751214644052,-1073.01,0.00019488,2]
[368579877,1751214644061,-575.85,0.00019488,2]
[368579879,1751214644071,-3160.96,0.00019488,2]
[368579881,1751214644081,-3422.77,0.00019488,2]
[368579883,1751214644092,-516.83,0.00019488,2]
[368579885,1751214644101,-460.0,0.00019488,2]
[368579887,1751214644112,-1879.78,0.00019488,2]
[368579889,1751214644121,-460.0,0.00019488,2]
[368579891,1751214644130,-460.0,0.00019488,2]
[368579893,1751214644139,-1343.88,0.00019488,2]
[368579895,1751214644149,-530.65,0.00019488,2]
[368579897,1751214644159,-600.34,0.00019488,2]
[368579899,1751214644168,-594.39,0.00019488,2]
[368579901,1751214644177,-1811.05,0.00019488,2]
[368579903,1751214644187,-484.72,0.00019488,2]
[368579905,1751214644197,-460.0,0.00019489,2]
[368579907,1751214644207,-460.0,0.00019489,2]
[368579909,1751214644216,-460.0,0.00019489,2]
[368579911,1751214644226,-573.43,0.00019489,2]
[368579913,1751214644235,-460.0,0.00019489,2]
[368579915,1751214644244,-816.59,0.00019489,2]
[368579917,1751214644254,-460.0,0.00019489,2]
[368579919,1751214644263,-633.25,0.00019489,2]
[368579921,1751214644273,-460.0,0.00019489,2]
[368579923,1751214644283,-932.7,0.00019489,2]
[368579925,1751214644294,-460.0,0.00019489,2]
[368579927,1751214644303,-4508.6,0.00019489,2]
[368579929,1751214644312,-806.75,0.00019489,2]
[368579931,1751214644321,-991.41,0.00019489,2]
[368579933,1751214644332,-460.0,0.00019491,2]
[368579935,1751214644341,-460.0,0.00019491,2]
[368579937,1751214644351,-1263.59,0.00019491,2]
[368579939,1751214644360,-1126.2,0.00019491,2]
[368579941,1751214644370,-1511.29,0.00019491,2]
[368579943,1751214644379,-460.0,0.00019491,2]
[368579945,1751214644388,-460.0,0.00019491,2]
[368579947,1751214644398,-460.0,0.00019491,2]
[368579949,1751214644408,-1150.3,0.00019491,2]
[368579951,1751214644417,-879.31,0.00019491,2]
[368579953,1751214644426,-531.23,0.00019491,2]
[368579955,1751214644435,-1095.64,0.00019491,2]
[368579957,1751214644444,-1792.45,0.00019491,2]
[368579959,1751214644454,-1237.25,0.00019491,2]
[368579961,1751214644463,-460.0,0.00019492,2]
[368579963,1751214644472,-460.0,0.00019492,2]
[368579965,1751214644483,-460.0,0.00019492,2]
[368579967,1751214644492,-460.0,0.00019492,2]
[368579969,1751214644502,-460.0,0.00019492,2]
[368579971,1751214644511,-494.59,0.00019492,2]
[368579973,1751214644521,-529.04,0.00019492,2]
[368579975,1751214644532,-572.89420888,0.00019492,2]
[368579977,1751214644541,-621.83,0.00019492,2]
[368579979,1751214644551,-492.8,0.00019492,2]
[368579981,1751214644561,-460.0,0.00019492,2]
[368579983,1751214644571,-460.0,0.00019492,2]
[368579985,1751214644581,-460.0,0.00019492,2]
[368579987,1751214644591,-4835.72,0.00019492,2]
[368579989,1751214644601,-1533.27,0.00019492,2]
[368579991,1751214644610,-488.44,0.00019492,2]
[368579993,1751214644620,-460.0,0.00019492,2]
[368579995,1751214644630,-151.0,0.00019496,2]
[368579997,1751214644639,-460.0,0.00019505,2]
[368579999,1751214644649,-460.0,0.00019506,2]
[368580001,1751214644658,-600.39,0.00019506,2]
[368580003,1751214644667,-402.92667154,0.00019506,2]
[368580005,1751214644677,-460.0,0.00019506,2]
[368580007,1751214644686,-460.0,0.00019506,2]
[368580009,1751214644695,-1812.34,0.00019506,2]
[368580011,1751214644705,-460.0,0.00019513,2]
[368580013,1751214644714,-5609.91790259,0.00019521,2]
[368580015,1751214644724,-1000.0,0.00019531,2]
[368580017,1751214644734,-1000.0,0.00019531,2]
[368580019,1751214644747,-1000.0,0.00019531,2]
[368580021,1751214644757,-1000.0,0.00019548,2]
[368580023,1751214644767,-500.0,0.00019578,2]
[368580025,1751214644777,-655.20954591,0.00019579,2]
[368580027,1751214644787,-1000.0,0.00019648,2]
[368580029,1751214644796,-5609.91790259,0.00019728,2]
[368580032,1751214644806,-583.38,0.0001976,2]
[368580034,1751214644817,-569.2,0.0001976,2]
[368580036,1751214644826,-2220.41,0.0001976,2]
[368580038,1751214644837,-460.0,0.0001976,2]
[368580040,1751214644847,-460.0,0.00019761,2]
[368580042,1751214644857,-460.0,0.00019761,2]
[368580044,1751214644867,-460.0,0.00019761,2]
[368580046,1751214644876,-460.0,0.00019761,2]
[368580048,1751214644886,-460.0,0.00019761,2]
[368580050,1751214644896,-460.0,0.00019761,2]
[368580051,1751214644905,-460.0,0.00019762,2]
[368580053,1751214644915,-460.0,0.00019762,2]
[368580055,1751214644924,-838.12,0.00019762,2]
[368580058,1751214644934,-3008.72,0.00019762,2]
[368580060,1751214644943,-709.41,0.00019762,2]
[368580062,1751214644953,-460.0,0.00019762,2]
[368580064,1751214644963,-3031.75,0.00019762,2]
[368580066,1751214644973,-460.0,0.00019762,2]
[368580068,1751214644984,-664.82,0.00019762,2]
[368580069,1751214644994,-460.0,0.00019762,2]
[368580071,1751214645004,-460.0,0.00019762,2]
[368580074,1751214645013,-660.35,0.00019762,2]
[368580076,1751214645026,-493.51,0.00019762,2]
[368580078,1751214645035,-3488.56,0.00019762,2]
[368580080,1751214645045,-460.0,0.00019762,2]
[368580082,1751214645054,-1073.01,0.00019762,2]
[368580084,1751214645063,-575.85,0.00019762,2]
[368580085,1751214645074,-3160.96,0.00019762,2]
[368580088,1751214645085,-3422.77,0.00019762,2]
[368580090,1751214645095,-516.83,0.00019762,2]
[368580092,1751214645105,-460.0,0.00019762,2]
[368580094,1751214645114,-1879.78,0.00019762,2]
[368580096,1751214645123,-460.0,0.00019762,2]
[368580098,1751214645133,-460.0,0.00019762,2]
[368580100,1751214645142,-1343.88,0.00019762,2]